bitfinex-derivatives/quotes_SOLF0:USTF0_20251228
["timestamp","ask_amount","ask_price","bid_price","bid_amount"]
[1766893179803,4.95645531,124.12,124.07,3.26532438]
[1766893189512,3.45890535,124.12,124.07,3.26532438]
[1766893190309,0.05890535,124.12,124.07,3.26532438]
[1766893190511,0.05890535,124.12,124.09,3.24]
[1766893200717,1.49754996,124.11,124.07,0.05532438]
[1766893202721,1.49754996,124.11,124.07,0.38532438]
[1766893203733,12.27305531,124.12,124.07,0.38532438]
[1766893205722,1.49754996,124.11,124.07,0.38532438]
[1766893207538,4.95754996,124.09,124.04,0.33]
[1766893208536,0.06108374,124.08,124.05,0.06172109]
[1766893210143,0.06108374,124.08,124.05,0.44172109]
[1766893233160,0.00108374,124.08,124.05,0.44172109]
[1766893233460,0.00108374,124.08,124.05,2.78240154]
[1766893233658,10.6166,124.12,124.06,0.32]
[1766893233863,3.36,124.12,124.06,0.32]
[1766893234758,0.06168609,124.1,124.08,0.05676295]
[1766893291112,0.00168609,124.1,124.08,0.37676295]
[1766893348286,3.52,124.13,124.08,0.37676295]
[1766893348485,5.92779846,124.14,124.08,0.37676295]
[1766893349480,0.06046142,124.12,124.08,0.37676295]
[1766893349782,0.06046142,124.12,124.09,0.26]
[1766893349982,0.00046142,124.12,124.09,0.26]
[1766893356091,0.00046142,124.12,124.09,7.5175]
[1766893356289,0.00046142,124.12,124.1,0.2]
[1766893363096,5.74916709,124.17,124.11,0.2]
[1766893363995,0.05522949,124.15,124.11,0.2]
[1766893365295,0.05522949,124.15,124.12,0.05824453]
[1766893369103,0.05522949,124.15,124.12,0.25824453]
[1766893382610,0.05522949,124.15,124.12,2.59741162]
[1766893390010,0.05522949,124.15,124.12,0.25824453]
[1766893390216,3.41522949,124.15,124.12,0.05824453]
[1766893390411,3.41522949,124.15,124.09,95.4]
[1766893391417,3.41522949,124.15,124.11,0.05210678]
[1766893394624,3.36,124.14,124.08,2.33916709]
[1766893394810,3.36,124.14,124.07,95.45]
[1766893395614,0.06165885,124.12,124.09,0.05251843]
[1766893413040,0.06165885,124.12,124.09,1.54947607]
[1766893417041,3.51165885,124.12,124.09,1.54947607]
[1766893417249,3.51165885,124.12,124.09,0.05251843]
[1766893430442,3.51165885,124.12,124.09,1.54947607]
[1766893443959,3.51165885,124.12,124.09,0.05251843]
[1766893449169,3.3,124.14,124.11,1.49695764]
[1766893450270,3.36118088,124.14,124.11,1.49695764]
[1766893453072,3.36118088,124.14,124.1,1.49695764]
[1766893462082,3.36118088,124.14,124.09,9.05717607]
[1766893466984,3.36118088,124.14,124.09,7.56021843]
[1766893481500,3.36118088,124.14,124.09,0.05251843]
[1766893489803,3.36118088,124.14,124.09,2.39151035]
[1766893497815,3.36118088,124.14,124.09,2.64151035]
[1766893498217,3.36118088,124.14,124.11,2.33899192]
[1766893500412,0.06118088,124.14,124.11,2.33899192]
[1766893500810,9.17755372,124.16,124.13,2.33899192]
[1766893501013,3.23,124.16,124.13,2.33899192]
[1766893501918,3.28163558,124.16,124.13,2.39598977]
[1766893504923,3.28163558,124.16,124.13,0.05699785]
[1766893506522,3.28163558,124.16,124.09,0.25]
[1766893507518,3.28163558,124.16,124.11,0.05148365]
[1766893522129,10.53543558,124.16,124.11,0.00148365]
[1766893522334,3.27,124.15,124.11,0.00148365]
[1766893527439,3.27,124.14,124.11,0.00148365]
[1766893530831,3.27,124.12,124.05,22.70577798]
[1766893531039,3.27,124.12,124.06,1.496796]
[1766893532139,0.05424695,124.1,124.08,0.05681764]
[1766893532340,3.32424695,124.1,124.06,1.496796]
[1766893533240,3.32424695,124.1,124.07,0.06167447]
[1766893536736,3.32424695,124.1,124.07,0.00167447]
[1766893609519,3.51,124.12,124.07,0.42167447]
[1766893609717,3.51,124.12,124.07,0.42]
[1766893610618,0.05097147,124.11,124.08,0.05076071]
[1766893618931,0.05097147,124.11,124.08,2.39107875]
[1766893620636,95.24,124.16,124.1,2.34031804]
[1766893620838,95.24,124.16,124.1,2.99031804]
[1766893621435,7.2524,124.19,124.1,2.99031804]
[1766893621636,0.05475994,124.16,124.13,0.05337799]
[1766893657059,1.55081089,124.16,124.09,9.40355095]
[1766893657260,3.48,124.15,124.09,9.40355095]
[1766893658063,0.05119665,124.13,124.11,0.06176204]
[1766893666663,0.05119665,124.13,124.11,1.55781299]
[1766893667264,0.00119665,124.13,124.11,2.25781299]
[1766893668067,0.00119665,124.13,124.12,1.49605095]
[1766893673372,3.48,124.16,124.12,1.49605095]
[1766893674369,0.06155756,124.15,124.12,1.49605095]
[1766893678874,0.06155756,124.15,124.11,2.25781299]
[1766893680573,3.43155756,124.15,124.11,0.06176204]
[1766893741422,3.43155756,124.15,124.11,9.65643332]
[1766893741627,5.756e-05,124.15,124.11,5.73993332]
[1766893742633,0.05575353,124.14,124.12,7.256]
[1766893747335,0.05575353,124.14,124.11,5.73993332]
[1766893754848,0.05575353,124.14,124.11,100.93993332]
[1766893755651,3.5,124.17,124.12,3.43]
[1766893756658,0.05795729,124.16,124.12,3.43]
[1766893777978,0.05795729,124.16,124.12,4.92605553]
[1766893792188,0.05795729,124.16,124.13,1.49605553]
[1766893792691,0.05795729,124.16,124.13,4.96605553]
[1766893794790,0.05795729,124.16,124.13,3.47]
[1766893802011,0.05795729,124.16,124.11,0.06176204]
[1766893802012,3.23795729,124.16,124.11,0.06176204]
[1766893802212,4.73401282,124.16,124.11,0.06176204]
[1766893803311,3.23795729,124.16,124.11,0.06176204]
[1766893803615,10.49185729,124.16,124.11,0.06176204]
[1766893804412,10.49185729,124.16,124.11,1.55781757]
[1766893808123,10.49185729,124.16,124.11,0.06176204]
[1766893810523,10.49185729,124.16,124.11,1.55781757]
[1766893811627,10.49185729,124.16,124.11,4.98781757]
[1766893814226,0.05795729,124.16,124.13,1.49605553]
[1766893820425,0.05795729,124.16,124.12,4.92605553]
[1766893833342,0.05795729,124.16,124.12,3.43]
[1766893849856,0.05795729,124.16,124.02,213.66679664]
[1766893849857,3.42,124.14,124.06,3.52]
[1766893850561,3.42,124.14,124.08,3.52]
[1766893850862,0.060613,124.12,124.1,3.58112697]
[1766893851459,0.000613,124.12,124.1,3.58112697]
[1766893855158,0.000613,124.12,124.1,0.06112697]
[1766893867160,0.000613,124.12,124.1,3.59112697]
[1766893888281,0.000613,124.12,124.1,10.84812697]
[1766893889080,0.000613,124.12,124.11,3.28]
[1766893918189,0.000613,124.12,124.11,99.9762544]
[1766893921093,3.46,124.16,124.11,99.9762544]
[1766893922197,0.06186236,124.15,124.12,3.3]
[1766893922397,0.06186236,124.15,124.12,3.35326918]
[1766893922695,0.00186236,124.15,124.13,4.7962544]
[1766893936402,0.00186236,124.15,124.13,3.3]
[1766893953020,0.00186236,124.15,124.13,12.0516544]
[1766893953219,3.51,124.2,124.15,3.3]
[1766893954218,0.05367107,124.19,124.16,0.05340836]
[1766894022095,0.05367107,124.19,124.16,1.54844054]
[1766894041317,0.05367107,124.19,124.16,4.97844054]
[1766894067055,0.05367107,124.19,124.16,1.54844054]
[1766894069155,0.05367107,124.19,124.16,4.80844054]
[1766894076959,0.05367107,124.19,124.16,3.31340836]
[1766894123600,0.05367107,124.19,124.14,3.53]
[1766894123808,3.45367107,124.19,124.14,3.53]
[1766894124804,3.45367107,124.19,124.15,0.06102604]
[1766894148424,3.42,124.18,124.12,4.90576695]
[1766894149419,0.05836409,124.16,124.14,0.05211275]
[1766894214693,3.21,124.15,124.09,22.37533587]
[1766894214990,3.21,124.15,124.09,3.29]
[1766894215693,0.05152294,124.13,124.11,0.05413138]
[1766894231299,3.21,124.17,124.11,3.34413138]
[1766894231503,3.21,124.17,124.11,5.68183407]
[1766894232407,0.05354816,124.15,124.11,5.68183407]
[1766894240611,0.05354816,124.15,124.12,3.25]
[1766894288251,0.00354816,124.15,124.12,3.25]
[1766894398072,0.00354816,124.15,124.11,0.05413138]
[1766894398277,1.49640995,124.14,124.11,0.05413138]
[1766894401377,3.39354816,124.15,124.11,0.05413138]
[1766894401676,4.88640995,124.14,124.09,1.78793945]
[1766894402673,4.88640995,124.14,124.1,0.05508094]
[1766894404978,1.49640995,124.11,124.07,2.44]
[1766894405374,4.88640995,124.11,124.07,2.44]
[1766894405981,0.05195527,124.1,124.08,0.05862468]
[1766894406182,3.39,124.08,123.98,112.9934]
[1766894406378,3.39,124.05,123.97,116.16511242]
[1766894406581,4.88640995,124.05,123.98,1.49640995]
[1766894406778,112.9083,124.09,123.97,3.15571242]
[1766894406779,3.39,124.07,124.01,1.49640995]
[1766894407077,0.00018082,124.05,124.03,1.55799459]
[1766894407476,0.00018082,124.05,124.03,0.06158464]
[1766894409580,1.49659077,124.05,124.03,0.06158464]
[1766894410588,1.49659077,124.05,123.98,1.49640995]
[1766894410775,1.49640995,124.03,123.99,1.57]
[1766894411784,0.05993678,124.02,124.0,0.05439379]
[1766894419301,3.39,124.04,124.0,1.62439379]
[1766894419494,98.5,124.06,124.01,1.51]
[1766894419886,99.99640995,124.06,124.01,1.51]
[1766894420503,0.05560515,124.05,124.01,1.51]
[1766894427202,1.5520151,124.05,124.01,1.51]
[1766894427409,1.49640995,124.02,123.97,4.66571242]
[1766894428109,1.49640995,124.01,123.97,4.66571242]
[1766894428309,0.05137477,124.0,123.98,0.06009026]
[1766894428708,1.54778472,124.0,123.98,0.06009026]
[1766894429606,0.05137477,124.0,123.98,0.06009026]
[1766894444322,0.00137477,124.0,123.98,1.57009026]
[1766894444526,4.73640995,124.04,123.98,1.57009026]
[1766894445427,0.05993146,124.02,123.98,1.57009026]
[1766894446831,3.24,124.04,124.0,1.4]
[1766894447823,0.05477316,124.03,124.01,0.0528796]
[1766894455636,98.8,124.06,124.01,1.4628796]
[1766894455637,3.54,124.06,124.01,1.4628796]
[1766894456636,0.05666512,124.05,124.01,1.4628796]
[1766894457341,3.59666512,124.05,124.01,0.0528796]
[1766894458830,0.05666512,124.05,124.01,1.4628796]
[1766894462435,3.54,124.08,124.01,1.4628796]
[1766894463531,0.05278506,124.06,124.01,1.4628796]
[1766894494863,3.46278506,124.06,124.01,1.4628796]
[1766894509769,0.05278506,124.06,124.01,1.4628796]
[1766894510071,0.05278506,124.06,124.02,1.35]
[1766894510666,0.05278506,124.06,124.02,2.84852827]
[1766894511469,0.05278506,124.06,124.03,1.35]
[1766894512769,0.05278506,124.06,124.03,2.84852827]
[1766894513470,3.26,124.08,124.03,2.84852827]
[1766894514465,0.06036284,124.07,124.04,0.06021359]
[1766894520279,1.49852827,124.06,124.04,0.06021359]
[1766894520468,0.06036284,124.07,124.04,0.00021359]
[1766894527583,3.32036284,124.07,124.04,0.00021359]
[1766894556096,4.81889111,124.07,124.04,0.00021359]
[1766894556493,3.3,124.06,124.04,0.00021359]
[1766894575415,0.06036284,124.07,124.04,0.00021359]
[1766894576221,3.30036284,124.07,124.04,0.00021359]
[1766894611654,5.64149862,124.07,124.04,0.00021359]
[1766894611840,3.23,124.06,123.99,23.64485211]
[1766894612039,3.23,124.06,123.99,8.6732]
[1766894612245,3.23,124.06,123.99,7.2632]
[1766894612847,3.23,124.03,124.01,0.00254926]
[1766894622654,3.23,124.05,124.01,0.00254926]
[1766894622954,3.23,124.05,124.02,2.34113578]
[1766894623644,3.23,124.05,124.02,2.39669487]
[1766894623846,3.28440683,124.05,124.02,2.39669487]
[1766894625258,0.05440683,124.05,124.02,2.39669487]
[1766894625458,3.38,124.07,124.02,2.39669487]
[1766894626351,0.05848016,124.06,124.02,2.39669487]
[1766894626558,3.43848016,124.06,124.02,2.39669487]
[1766894629958,3.43848016,124.06,124.04,1.49784241]
[1766894630757,3.43848016,124.06,124.02,0.05555909]
[1766894631054,3.43848016,124.06,124.03,1.49784241]
[1766894635860,3.43848016,124.06,124.02,0.05555909]
[1766894636063,3.43848016,124.06,124.02,1.5534015]
[1766894637257,3.43848016,124.06,124.03,1.49784241]
[1766894641260,7.2564,124.12,124.04,1.49784241]
[1766894641562,8.75424241,124.12,124.05,1.49784241]
[1766894642352,8.75424241,124.12,124.07,0.05623975]
[1766894642549,8.75424241,124.12,124.05,1.49784241]
[1766894642857,1.49784241,124.11,124.04,8.75844241]
[1766894643360,3.49,124.1,124.04,8.75844241]
[1766894643562,0.06034866,124.08,124.06,0.06185691]
[1766894661976,1.49784241,124.11,124.06,0.06185691]
[1766894661977,3.24,124.11,124.07,1.49784241]
[1766894662376,3.24,124.11,124.06,4.89969932]
[1766894667874,3.24,124.11,124.06,3.40185691]
[1766894668076,3.24,124.11,124.06,4.89969932]
[1766894673797,3.24,124.11,124.06,4.89969932]
[1766894678999,3.24,124.11,124.06,3.40185691]
[1766894679194,4.73784241,124.11,124.06,0.06185691]
[1766894679403,3.24,124.1,124.06,0.06185691]
[1766894691410,3.24,124.1,124.06,1.55969932]
[1766894691812,3.24,124.1,124.06,0.06185691]
[1766894719930,3.24,124.1,124.06,0.00185691]
[1766894720834,3.43,124.08,124.06,0.00185691]
[1766894730146,3.43,124.08,124.04,0.00166672]
[1766894730651,3.43,124.08,124.01,105.9725]
[1766894731152,0.0564462,124.06,124.03,0.05221898]
[1766894731450,0.0564462,124.06,124.03,0.0595746]
[1766894733047,3.4864462,124.06,124.03,0.0595746]
[1766894736457,3.4864462,124.06,124.03,2.33980981]
[1766894737358,3.4864462,124.06,124.03,2.40032324]
[1766894744261,3.4864462,124.06,124.03,0.06051343]
[1766894744461,3.4864462,124.06,124.03,2.40032324]
[1766894746962,3.4864462,124.06,124.03,0.06051343]
[1766894747161,3.4864462,124.06,124.03,2.40032324]
[1766894751271,3.4864462,124.06,124.03,0.00051343]
[1766894753971,3.4864462,124.06,124.03,1.49889616]
[1766894755474,3.4864462,124.06,124.03,1.49838273]
[1766894755873,3.4864462,124.06,124.02,1.49838273]
[1766894756474,3.4864462,124.06,124.03,0.06128223]
[1766894756768,3.4864462,124.06,124.03,0.00128223]
[1766894783795,3.4864462,124.06,124.04,1.49838273]
[1766894783994,5.96412857,124.1,124.04,1.49838273]
[1766894784192,5.96412857,124.1,124.05,1.49838273]
[1766894784597,5.96412857,124.1,124.04,1.49838273]
[1766894785000,5.96412857,124.1,124.06,0.00232546]
[1766894785001,0.05808043,124.08,124.06,0.00232546]
[1766894794610,0.05808043,124.08,124.02,1.49838273]
[1766894795815,0.05808043,124.08,124.04,0.05075857]
[1766894806319,0.05808043,124.08,124.04,1.5491413]
[1766894806623,0.05808043,124.08,124.04,0.05075857]
[1766894832541,7.31658043,124.08,124.04,0.05075857]
[1766894838540,0.05808043,124.08,124.04,3.42075857]
[1766894844352,95.26,124.1,124.04,3.42075857]
[1766894844547,7.2565,124.12,124.04,3.42075857]
[1766894844746,5.97570154,124.11,124.04,3.37]
[1766894845449,0.05565766,124.09,124.06,0.05283101]
[1766894845650,0.05565766,124.09,124.06,3.42283101]
[1766894849448,95.26,124.13,124.07,2.34075069]
[1766894849752,98.66,124.13,124.08,3.37]
[1766894850551,0.05119139,124.12,124.09,0.05925836]
[1766894851544,0.05119139,124.12,124.09,3.42925836]
[1766894851744,3.4,124.15,124.1,3.37]
[1766894852748,0.0541719,124.14,124.1,3.37]
[1766894880372,1.55093675,124.14,124.1,3.37]
[1766894880676,1.49676485,124.13,124.1,3.37]
[1766894883372,1.55093675,124.14,124.1,3.37]
[1766894885377,0.0541719,124.14,124.1,3.37]
[1766894887683,0.0041719,124.14,124.1,3.37]
[1766894932320,1.2547624,124.15,124.11,3.23]
[1766894932616,1.49676485,124.17,124.11,3.23]
[1766894933322,1.49676485,124.17,124.13,0.05735493]
[1766894933620,3.53,124.18,124.13,0.05735493]
[1766894933820,1.49676485,124.17,124.13,0.05735493]
[1766894934024,5.86811033,124.18,124.13,0.05735493]
[1766894938317,3.53,124.18,124.13,3.55735493]
[1766894939411,102.4524,124.19,124.13,3.55735493]
[1766894941221,95.2,124.19,124.13,3.55735493]
[1766894943628,1.93583726,124.2,124.13,3.55735493]
[1766894945922,1.93583726,124.2,124.15,3.5]
[1766894946123,1.93583726,124.2,124.16,3.55116183]
[1766894950339,98.53,124.22,124.16,3.55116183]
[1766894950533,3.33,124.21,124.16,3.55116183]
[1766894950837,3.33,124.21,124.16,0.05116183]
[1766894951640,5.66811033,124.2,124.16,0.05116183]
[1766894960141,3.33,124.2,124.16,0.05116183]
[1766895019900,3.33,124.2,124.16,4.94665634]
[1766895020309,98.56,124.22,124.16,4.94665634]
[1766895020504,3.36,124.21,124.16,4.94665634]
[1766895020807,3.36,124.21,124.17,1.49549451]
[1766895023910,3.36,124.21,124.16,4.94665634]
[1766895031518,3.36,124.21,124.16,3.45116183]
[1766895031818,3.36,124.21,124.16,4.94665634]
[1766895036521,3.36,124.21,124.16,3.45116183]
[1766895036824,3.36,124.21,124.16,4.94665634]
[1766895043731,3.36,124.21,124.16,3.45116183]
[1766895043935,4.85549451,124.21,124.16,3.45116183]
[1766895047238,3.36,124.21,124.16,3.45116183]
[1766895059143,95.2,124.22,124.16,3.45116183]
[1766895059551,3.51,124.22,124.16,3.45116183]
[1766895061048,3.51,124.22,124.17,10.753]
[1766895063352,3.51,124.22,124.18,3.5]
[1766895063548,3.51,124.22,124.19,0.06192119]
[1766895071963,3.51,124.22,124.19,0.00192119]
[1766895073165,3.56915669,124.22,124.19,0.00192119]
[1766895075763,5.90519025,124.22,124.19,0.00192119]
[1766895075960,3.5,124.21,124.19,0.00192119]
[1766895077968,3.5,124.21,124.16,3.5]
[1766895078863,3.5,124.21,124.16,13.54951483]
[1766895079064,3.5,124.21,124.17,0.05431297]
[1766895084562,3.5,124.21,124.17,3.49431297]
[1766895088268,0.05915669,124.22,124.17,3.49431297]
[1766895088467,3.5,124.23,124.18,3.44]
[1766895089373,0.02148732,124.22,124.18,3.44]
[1766895090166,0.02148732,124.22,124.18,10.6924]
[1766895090370,0.00148732,124.22,124.19,3.44]
[1766895090573,3.5,124.25,124.19,3.44]
[1766895091576,3.5,124.25,124.21,0.05417247]
[1766895096173,9.58383356,124.27,124.21,3.49417247]
[1766895096378,3.5,124.27,124.21,3.49417247]
[1766895102379,3.5,124.26,124.21,3.49417247]
[1766895103190,3.5,124.28,124.21,3.49417247]
[1766895103396,3.5,124.26,124.21,3.44]
[1766895103596,3.5,124.26,124.19,3.44]
[1766895104499,0.05654332,124.24,124.21,0.05258888]
[1766895128007,3.37654332,124.24,124.21,0.05258888]
[1766895128217,3.37654332,124.24,124.19,1.49408306]
[1766895129106,3.37654332,124.24,124.2,0.05623897]
[1766895141533,3.37654332,124.24,124.2,1.55032203]
[1766895147927,3.37654332,124.24,124.21,1.49408306]
[1766895158449,0.05654332,124.24,124.21,1.49408306]
[1766895158856,0.05654332,124.24,124.22,1.49408306]
[1766895160543,0.05654332,124.24,124.22,7.2501]
[1766895160753,103.87988306,124.3,124.23,1.49408306]
[1766895161153,102.3858,124.3,124.22,12.26418306]
[1766895161355,1.49408306,124.29,124.22,12.26418306]
[1766895161564,102.3858,124.3,124.22,8.74418306]
[1766895161856,0.05258888,124.27,124.25,0.0532728]
[1766895171065,3.50258888,124.27,124.25,0.0032728]
[1766895177358,3.50258888,124.27,124.22,3.53]
[1766895177359,3.50258888,124.27,124.21,5.02408306]
[1766895177559,3.50258888,124.27,124.22,1.49408306]
[1766895177965,3.50258888,124.27,124.21,5.86384899]
[1766895178364,3.50258888,124.27,124.23,0.05076357]
[1766895182658,3.50258888,124.27,124.23,0.00076357]
[1766895190071,10.74998888,124.27,124.23,0.00076357]
[1766895190370,3.45,124.26,124.23,0.00076357]
[1766895202469,0.05258888,124.27,124.23,0.00076357]
[1766895203075,3.30258888,124.27,124.23,0.00076357]
[1766895206576,3.30258888,124.27,124.23,3.45076357]
[1766895207176,0.05258888,124.27,124.23,3.45076357]
[1766895207787,0.05258888,124.27,124.23,13.03401256]
[1766895208081,0.05258888,124.27,124.24,3.45]
[1766895209675,0.05258888,124.27,124.24,10.6989]
[1766895210075,0.00258888,124.27,124.25,3.45]
[1766895212082,3.25,124.31,124.25,5.78384899]
[1766895213186,0.0530309,124.29,124.27,0.05748797]
[1766895229597,0.0530309,124.29,124.27,3.24748797]
[1766895230502,0.0530309,124.29,124.27,0.05748797]
[1766895235019,0.0030309,124.29,124.27,3.24748797]
[1766895238017,0.0030309,124.29,124.27,4.73981662]
[1766895239423,3.44,124.34,124.28,4.68232865]
[1766895239806,3.44,124.33,124.28,4.68232865]
[1766895240513,0.0502419,124.32,124.29,0.05863879]
[1766895240718,0.0502419,124.32,124.29,1.55096744]
[1766895241322,0.0502419,124.32,124.29,0.05863879]
[1766895250024,4.98257055,124.32,124.29,0.05863879]
[1766895250327,4.93232865,124.31,124.26,3.19]
[1766895251026,3.44,124.3,124.26,3.19]
[1766895251222,0.05670832,124.29,124.27,0.05847629]
[1766895253633,3.49670832,124.29,124.24,3.19]
[1766895254720,4.98903697,124.29,124.25,0.05125641]
[1766895255727,3.22,124.28,124.25,0.05125641]
[1766895255926,4.71232865,124.28,124.25,0.05125641]
[1766895256535,3.22,124.28,124.25,0.05125641]
[1766895257130,3.22,124.28,124.25,0.00125641]
[1766895257331,0.05670832,124.29,124.2,14.97165211]
[1766895257332,4.71232865,124.26,124.2,4.67232865]
[1766895257536,3.22,124.26,124.21,4.67232865]
[1766895258233,3.22,124.28,124.23,4.67232865]
[1766895258536,0.05949145,124.27,124.24,0.05224969]
[1766895259932,1.49232865,124.3,124.24,0.05224969]
[1766895260639,8.73812865,124.3,124.24,0.05224969]
[1766895260840,0.05740463,124.28,124.24,0.05224969]
[1766895261940,1.63740463,124.28,124.24,0.05224969]
[1766895266345,3.12973328,124.28,124.24,0.05224969]
[1766895271146,1.58,124.27,124.24,0.05224969]
[1766895271945,3.07232865,124.27,124.21,4.67232865]
[1766895272543,3.07232865,124.27,124.21,3.18]
[1766895272749,3.07232865,124.27,124.21,4.67232865]
[1766895272952,0.06149793,124.25,124.23,0.06032662]
[1766895279963,1.64149793,124.25,124.23,0.00032662]
[1766895303283,1.64149793,124.25,124.19,2.33419828]
[1766895304082,1.64149793,124.25,124.21,0.05722675]
[1766895305879,1.64149793,124.25,124.18,20.61161483]
[1766895306085,1.64149793,124.25,124.18,3.31]
[1766895307076,1.64149793,124.25,124.2,0.06006151]
[1766895307680,1.46,124.24,124.2,6.151e-05]
[1766895308281,1.4,124.23,124.16,3.31]
[1766895309394,1.46075397,124.21,124.18,0.0554421]
[1766895310689,1.46075397,124.21,124.16,3.31]
[1766895311396,1.46075397,124.21,124.15,2.33419828]
[1766895311592,1.46075397,124.21,124.17,0.05623304]
[1766895311790,1.46075397,124.21,124.15,2.33419828]
[1766895312794,1.46075397,124.21,124.17,0.05324814]
[1766895313696,1.29,124.2,124.17,0.05324814]
[1766895316596,0.06075397,124.21,124.17,5.87744642]
[1766895318198,0.06075397,124.21,124.18,2.33419828]
[1766895326305,0.06075397,124.21,124.17,3.54324814]
[1766895328910,0.06075397,124.21,124.17,5.87744642]
[1766895330905,0.06075397,124.21,124.18,3.49]
[1766895340718,0.06075397,124.21,124.17,0.05324814]
[1766895340917,1.35075397,124.21,124.17,0.05324814]
[1766895361741,1.35075397,124.21,124.17,3.30324814]
[1766895362039,0.06075397,124.21,124.17,4.79794603]
[1766895362634,0.06075397,124.21,124.18,1.49469789]
[1766895366037,0.06075397,124.21,124.17,3.30324814]
[1766895366239,0.06075397,124.21,124.18,1.49469789]
[1766895368032,0.06075397,124.21,124.17,3.30324814]
[1766895368229,0.06075397,124.21,124.17,4.79794603]
[1766895372939,0.06075397,124.21,124.17,3.30324814]
[1766895373134,0.06075397,124.21,124.17,4.79794603]
[1766895380549,0.06075397,124.21,124.18,1.49469789]
[1766895382754,0.06075397,124.21,124.18,4.98469789]
[1766895390761,0.00850428,124.21,124.18,4.98469789]
[1766895393762,0.00850428,124.21,124.19,3.49]
[1766895393956,0.00850428,124.21,124.2,3.49]
[1766895425285,0.00850428,124.21,124.17,0.05324814]
[1766895425480,0.00850428,124.21,124.17,3.55324814]
[1766895431589,0.00850428,124.21,124.17,10.80614814]
[1766895431788,0.00850428,124.21,124.19,3.5]
[1766895446001,0.00850428,124.21,124.17,3.33324814]
[1766895462126,0.00850428,124.21,124.18,3.28]
[1766895470933,0.00850428,124.21,124.17,10.09169507]
[1766895471135,0.00850428,124.21,124.17,0.05324814]
[1766895471328,0.00850428,124.21,124.17,3.38324814]
[1766895471829,0.00850428,124.21,124.18,5.66496266]
[1766895472434,0.00850428,124.21,124.18,3.33]
[1766895474634,0.00850428,124.21,124.18,5.66496266]
[1766895476635,0.00850428,124.21,124.18,3.33]
[1766895478537,0.00850428,124.21,124.18,5.66496266]
[1766895478937,0.00850428,124.21,124.19,3.33]
[1766895484445,8.5282,124.26,124.2,3.33]
[1766895485341,0.0595915,124.24,124.22,0.0518254]
[1766895490954,7.2478,124.27,124.22,3.3818254]
[1766895491149,10.08191093,124.27,124.22,3.3818254]
[1766895491348,8.74191093,124.27,124.22,3.3818254]
[1766895491554,1.34,124.26,124.22,3.3818254]
[1766895491952,0.05394924,124.25,124.22,3.3818254]
[1766895492856,0.05394924,124.25,124.22,4.87593633]
[1766895500678,0.00394924,124.25,124.23,3.53]
[1766895502163,0.00394924,124.25,124.23,5.02411093]
[1766895502361,0.00394924,124.25,124.24,3.53]
[1766895510874,0.00394924,124.25,124.22,3.5818254]
[1766895514880,0.00394924,124.25,124.22,5.07593633]
[1766895515080,0.00394924,124.25,124.23,3.53]
[1766895516977,0.00394924,124.25,124.24,3.53]
[1766895518483,0.00394924,124.25,124.24,5.02411093]
[1766895519386,2.43965169,124.29,124.25,3.53]
[1766895520082,2.43965169,124.29,124.25,1.49411093]
[1766895520390,8.998e-05,124.28,124.26,3.58544448]
[1766895522882,8.998e-05,124.28,124.26,0.05544448]
[1766895523387,1.49420091,124.28,124.24,3.53]
[1766895523987,8.998e-05,124.28,124.24,3.53]
[1766895524580,8.998e-05,124.28,124.25,0.05412732]
[1766895531779,1.49411093,124.27,124.22,3.25]
[1766895531993,10.19120091,124.28,124.22,3.25]
[1766895532786,10.19120091,124.28,124.24,0.06150582]
[1766895533692,8.69708998,124.28,124.24,0.06150582]
[1766895533894,10.19120091,124.28,124.24,0.06150582]
[1766895534893,2.88411093,124.26,124.2,13.28844693]
[1766895535097,1.39,124.25,124.2,3.25]
[1766895535896,0.05165723,124.24,124.21,0.05763933]
[1766895536591,0.05165723,124.24,124.21,3.30763933]
[1766895541502,1.49411093,124.23,124.19,3.25]
[1766895542302,1.44165723,124.24,124.19,3.25]
[1766895542494,1.49411093,124.23,124.2,0.05271464]
[1766895545003,10.18506816,124.24,124.2,0.05271464]
[1766895545204,8.69095723,124.24,124.2,0.05271464]
[1766895545905,10.18506816,124.24,124.2,0.05271464]
[1766895547906,8.69095723,124.24,124.2,0.05271464]
[1766895549006,7.2501,124.23,124.2,0.05271464]
[1766895562031,8.6401,124.23,124.2,0.05271464]
[1766895578937,1.39,124.22,124.2,0.00271464]
[1766895622993,1.39165723,124.24,124.2,0.00271464]
[1766895623183,1.39165723,124.24,124.2,1.49728404]